{"text_format":"3","workbook":"xlsx","n_sheets":5,"sheets":["Информация о Чемпионате","Общая инфраструктура","Рабочее место конкурсантов","Расходные материалы","Личный инструмент участника"],"read":"whole","date_system":"1900"}

{"sheet":"Информация о Чемпионате","index":0,"n_rows":23,"n_cols":2,"rows_kept":23}
[]
[]
["Компетенция","Предпринимательство, категория - основная"]
["Наименование этапа Чемпионата","Региональный этап Чемпионата по профессиональному мастерству"]
["Субъект РФ (регион проведения)","город федерального значения Севастополь"]
["Базовая организация расположения конкурсной площадки","Государственное бюджетное образовательное учреждение профессионального образования города Севастополя «Севастопольский торгово-экономический техникум»\n"]
["Адрес конкурсной площадки","г. Севастополь, ул. Кожанова, дом 2"]
["Даты проведения"," 13 февраля - 20 февраля 2026 года"]
["Главный эксперт","Потапова Елена Юрьевна"]
["Электронная почта ГЭ","lenochka-gorbacheva@bk.ru"]
["Моб.телефон ГЭ",79788677966]
["Технический администратор площадки","Кучеренко Ярослав Александрович"]
["Электронная почта ТАП","yayaric@rambler.ru"]
["Моб.телефон ТАП",79782722841]
["Количество конкурсантов",10]
["Количество рабочих мест",10]
["Количество экспертов (ГЭ+ЭН+ИЭ) + ТАП",15]
[]
[]
["ЭН - эксперт-наставник"]
["ГЭ - главный эксперт"]
["ИЭ - индустриальный эксперт"]
["ТАП - технический администратор площадки"]

{"sheet":"Общая инфраструктура","index":1,"n_rows":100,"n_cols":8,"rows_kept":100,"merged":[[0,0,0,7],[1,0,1,7],[2,0,2,7],[3,0,3,7],[4,0,4,7],[5,0,5,7],[6,0,6,1],[6,2,6,7],[7,0,7,2],[7,3,7,7],[8,0,8,1],[8,2,8,7],[9,0,9,1],[9,2,9,3],[9,4,9,5],[9,6,9,7],[10,0,10,1],[10,2,10,3],[10,4,10,5],[10,6,10,7],[11,0,11,1],[11,2,11,7],[12,0,12,1],[12,2,12,7],[13,0,13,1],[13,2,13,7],[14,0,14,1],[14,2,14,7],[15,0,15,7],[16,0,16,7],[17,0,17,7],[18,0,18,7],[19,0,19,7],[20,0,20,7],[21,0,21,7],[22,0,22,7],[23,0,23,7],[24,0,24,7],[26,1,26,7],[40,0,40,7],[41,0,41,7],[42,0,42,7],[43,0,43,7],[44,0,44,7],[45,0,45,7],[46,0,46,7],[47,0,47,7],[48,0,48,7],[49,0,49,7],[54,0,54,7],[55,0,55,7],[56,0,56,7],[57,0,57,7],[58,0,58,7],[59,0,59,7],[60,0,60,7],[61,0,61,7],[62,0,62,7],[63,0,63,7],[79,0,79,7],[84,0,84,7],[85,0,85,7],[86,0,86,7],[87,0,87,7],[88,0,88,7],[89,0,89,7],[90,0,90,7],[91,0,91,7],[92,0,92,7],[93,0,93,7]]}
["ПРОЕКТ"]
["Инфраструктурный лист для оснащения конкурсной площадки"]
[{"$f":"'Информация о Чемпионате'!B4","v":"Региональный этап Чемпионата по профессиональному мастерству"}]
["по компетенции"]
[{"$f":"'Информация о Чемпионате'!B3","v":"Предпринимательство, категория - основная"}]
["Основная информация о конкурсной площадке:"]
["Субъект Российской Федерации:",null,{"$f":"'Информация о Чемпионате'!B5","v":"город федерального значения Севастополь"}]
["Базовая организация расположения конкурсной площадки:",null,null,{"$f":"'Информация о Чемпионате'!B6","v":"Государственное бюджетное образовательное учреждение профессионального образования города Севастополя «Севастопольский торгово-экономический техникум»\n"}]
["Адрес базовой организации: ",null,{"$f":"'Информация о Чемпионате'!B7","v":"г. Севастополь, ул. Кожанова, дом 2"}]
["Главный эксперт: ",null,{"$f":"'Информация о Чемпионате'!B9","v":"Потапова Елена Юрьевна"},null,{"$f":"'Информация о Чемпионате'!B10","v":"lenochka-gorbacheva@bk.ru"},null,{"$f":"'Информация о Чемпионате'!B11","v":79788677966}]
["Технический администратор площадки: ",null,{"$f":"'Информация о Чемпионате'!B12","v":"Кучеренко Ярослав Александрович"},null,{"$f":"'Информация о Чемпионате'!B13","v":"yayaric@rambler.ru"},null,{"$f":"'Информация о Чемпионате'!B14","v":79782722841}]
["Количество экспертов (ЭН+ГЭ+ИЭ) + ТАП:",null,{"$f":"'Информация о Чемпионате'!B17","v":15}]
["Количество конкурсантов: ",null,{"$f":"'Информация о Чемпионате'!B15","v":10}]
["Количество рабочих мест: ",null,{"$f":"'Информация о Чемпионате'!B16","v":10}]
["Даты проведения: ",null,{"$f":"'Информация о Чемпионате'!B8","v":" 13 февраля - 20 февраля 2026 года"}]
["Общая зона конкурсной площадки (оборудование, инструмент, мебель) (брифинг зона)"]
["Требования к обеспечению зоны (коммуникации, площадь, сети, количество рабочих мест и др.): "]
["Площадь зоны: 62 кв.м."]
["Освещение: Допустимо верхнее искусственное освещение (300 люкс) "]
["Интернет : Подключение  ноутбуков / компьютеров к проводному интернету"]
["Электричество: 220 Вольт подключения к сети (220 Вольт и 380 Вольт)\t"]
["Контур заземления для электропитания и сети слаботочных подключений (при необходимости) : не требуется"]
["Покрытие пола: линолеум  - 62 кв.м."]
["Подведение/ отведение ГХВС (при необходимости): не требуется"]
["Подведение сжатого воздуха (при необходимости): не требуется"]
["№","Наименование ","Краткие (рамочные) технические характеристики","Вид","Количество","Единица измерения","Итоговое количество","Рекомендации представителей индустрии (указывается конкретное оборудование)"]
[null,"Брифинг зона"]
[1,"Стул ","Стул офисный мягкий до 100 кг  (дл/гл/выс), ширина сиденья 42 см, глубина 40 см, высота 84 см  ","Мебель",1,"шт",25]
[2,"Стол офисный","Стол офисный, прямоугольный,(ШхГхВ) 120х60х75 ","Мебель",1,"шт",13]
[3,"Ноутбук Aquarius, 16 бит","Процессор:  Процессор: Intel Core Core i5 -10210U\nЧастота процессора: 1600 МГц\nОбъем оперативной памяти: 7.5 ГБ\nОбъем жесткого диска: 33.5 ГБ\nДиагональ экрана: 15.6 \"\nВидеокарта: Mesa Intel UHD Graphics (CML GT2)\n","Оборудование IT",1,"шт",1]
[4,"Мышь проводная","Мышь: SVEN RX-112, 3 кнопки, длина кабеля 1,8м, USB Type-A ","Оборудование IT",1,"шт",1]
[5,"МФУ","МФУ HP Color Laser MFP 178nw\nРазрешение печати 600 x 600\nПроизводитель HP\nТехнология печати: лазерная цветная","Оборудование IT",1,"шт",2]
[6,"ОС AstraLinux","ОС AstraLinux 1.7_х86-65","ПО",1,"шт",1]
[7,"Libero Office ","Libero Office 7.0.6.2","ПО",1,"шт",1]
[8,"Доска интерактивная ","Доска интерактивная MimioBoard МЕ 87\nДиагональ: 87 дюймов\nПодключение: USB \nПрограммное обеспечение: MimioStudio для Windows, Mac и Linux\nРазмер: 2120 х 1225 х 70 мм\nТехнология: Ультразвуковая и инфракрасная\nСоотношение сторон: 16:10\nРазрешение доски: 4800 x 9600\nШирина поверхности: 1.867 м\nВысота поверхности: 1.167 м","Оборудование IT",1,"шт",1]
[9,"Проектор","Проектор InFocus IN114, DLP, 1024x768, 3D, 26000:1, 3800 люмен, 31 дБ, 2.5 кг. ","Оборудование IT",1,"шт",1]
[10,"Флипчарт","Доска-флипчарт магнитно-маркерная BRAUBERG Стандарт магнитно-маркерный, 70х1000*1850 Основание: стойка с полкой для аксессуаров и держателем для бумаги  ","Оборудование",1,"шт",1]
[11,"Сетевой фильтр","Пилот, 4 розеток, 10 А","Оборудование IT",1,"шт",1]
[12,"Розетки электрические на 3 гнезда","Для подключения персонального компьютера","Оборудование IT",1,"шт",1]
[13,"Мусорная корзина","Металлическое ведро для мусора с педалью, 12 л ","Мебель",1,"шт",1]
["Комната Конкурсантов (оборудование, инструмент, мебель) (по количеству конкурсантов)"]
["Требования к обеспечению зоны (коммуникации, площадь, сети, количество рабочих мест и др.): "]
["Площадь зоны: 52 кв.м."]
["Освещение: Допустимо верхнее искусственное освещение (300 люкс)"]
["Интернет : Подключение  ноутбуков к беспроводному интернету (с возможностью подключения к проводному интернету) \t"]
["Электричество: 220 Вольт подключения к сети (220 Вольт и 380 Вольт)\t"]
["Контур заземления для электропитания и сети слаботочных подключений (при необходимости) : не требуется"]
["Покрытие пола: плитка  - 52 кв.м. на всю зону"]
["Подведение/ отведение ГХВС (при необходимости): не требуется"]
["Подведение сжатого воздуха (при необходимости): не требуется"]
["№","Наименование ","Краткие (рамочные) технические характеристики","Вид","Количество","Единица измерения","Итоговое количество","Рекомендации представителей индустрии (указывается конкретное оборудование)"]
[1,"Стол офисный","Стол офисный, прямоугольный,(ШхГхВ) 120х60х75 ","Мебель",1,"шт",12]
[2,{"$f":"B28","v":"Стул "},"Стул офисный мягкий до 100 кг  (дл/гл/выс), ширина сиденья 42 см, глубина 40 см, высота 84 см   ","Мебель",1,"шт",25]
[3,"Мусорная корзина","Металлическое ведро для мусора с педалью, 12 л ","Мебель",1,"шт",1]
["Комната Экспертов (включая комнату Главного эксперта) (оборудование, инструмент, мебель) (по количеству экспертов)"]
["Требования к обеспечению зоны (коммуникации, площадь, сети, количество рабочих мест и др.): "]
["Площадь зоны: 26 кв.м."]
["Освещение: Допустимо верхнее искусственное освещение (300 люкс)"]
["Интернет : Подключение  ноутбуков к проводному интернету"]
["Электричество: 220 Вольт подключения к сети (220 Вольт и 380 Вольт)\t"]
["Контур заземления для электропитания и сети слаботочных подключений (при необходимости) : не требуется"]
["Покрытие пола: бетон - 26 кв.м. на всю зону"]
["Подведение/ отведение ГХВС (при необходимости) : не требуется"]
["Подведение сжатого воздуха (при необходимости): не требуется"]
["№","Наименование ","Краткие (рамочные) технические характеристики","Вид","Количество","Единица измерения","Итоговое количество","Рекомендации представителей индустрии (указывается конкретное оборудование)"]
[1,"Стол офисный","Стол офисный, прямоугольный,(ШхГхВ) 120х60х75 \nстоленшница не тоньше 25 мм\nбелая или светл-осерая ламинированная поверхность столешницы ","Мебель",1,"шт",5]
[2,{"$f":"B53","v":"Стул "},"Стул офисный мягкий до 100 кг  (дл/гл/выс), ширина сиденья 42 см, глубина 40 см, высота 84 см   ","Мебель",1,"шт",8]
[3,"Персональный компьютер","Процессор:  Intel (R) Celeron CPU G460\nЧастота процессора: 1.80 GHz\nОбъем оперативной памяти: 4 ГБ\nОбъем жесткого диска :465 ГБ\nДиагональ экрана: 17 \"\nВидеокарта:  Intel HD Graphics ","Оборудование IT",1,"шт",1]
[4,"Мышь проводная ","Мышь Logitech B100, 3 кнопки, длина кабеля 1,8м, USB Type-A ","Оборудование IT",1,"шт",1]
[5,"ОС Windows ","ОС Windows 7, 64 bits ","ПО",1,"шт",1]
[6,"Microsoft Office ","Microsoft Office 2016","ПО",1,"шт",1]
[7,"Архиватор ","Архиватор 7-z","ПО",1,"шт",1]
[8,"МФУ лазерное ","Pantum M6500, черно-белая печать, A4, 1200x1200 dpi, ч/б - 22 стр/мин (A4), АПД, Ethernet (RJ-45), USB, Wi-Fi, сканирование — 1200×1200 dpi.","Оборудование IT",1,"шт",1]
[9,"Ноутбук Aquarius, 16 бит","Процессор:  Процессор: Intel Core Core i5 -10210U\nЧастота процессора: 1600 МГц\nОбъем оперативной памяти: 7.5 ГБ\nОбъем жесткого диска: 33.5 ГБ\nДиагональ экрана: 15.6 \"\nВидеокарта: Mesa Intel UHD Graphics (CML GT2)\n","Оборудование IT",1,"шт",3]
[10,"Мышь проводная","Мышь: SVEN RX-112, 3 кнопки, длина кабеля 1,8м, USB Type-A ","Оборудование IT",1,"шт",3]
[11,"ОС AstraLinux","ОС AstraLinux 1.7_х86-65","ПО",1,"шт",3]
[12,"Libero Office ","Libero Office 7.0.6.2","ПО",1,"шт",3]
[13,"Сетевой фильтр","Пилот, 4 розеток","Оборудование IT",1,"шт",3]
[14,"Мусорная корзина","Металлическое ведро для мусора с педалью, 12 л ","Мебель",1,"шт",1]
["Охрана труда и техника безопасности"]
["№","Наименование ","Краткие (рамочные) технические характеристики","Вид","Количество","Единица измерения","Итоговое количество","Рекомендации представителей индустрии (указывается конкретное оборудование)"]
[1,"Аптечка","для оказания доврачебной помощи","Охрана труда",1,"шт",1]
[2,"Огнетушитель","углекислотный/порошковый","Охрана труда",1,"шт",1]
[3,"Бутылированная вода 0,5л","Кулер 19 л /бутылированная холодная вода","Охрана труда",1,"шт",1]
["Складское помещение "]
["Требования к обеспечению зоны (коммуникации, площадь, сети, количество рабочих мест и др.): "]
["Площадь зоны: не менее ____ кв.м."]
["Освещение: Допустимо верхнее искусственное освещение ( не менее ___ люкс) "]
["Интернет : Подключение  ноутбуков к беспроводному интернету (с возможностью подключения к проводному интернету) \t"]
["Электричество: ___ подключения к сети  по (220 Вольт и 380 Вольт)\t"]
["Контур заземления для электропитания и сети слаботочных подключений (при необходимости) : не требуется"]
["Покрытие пола: ковролин  - ___ кв.м. на всю зону"]
["Подведение/ отведение ГХВС (при необходимости): требуется/не требуется"]
["Подведение сжатого воздуха (при необходимости): требуется/не требуется"]
["№","Наименование ","Краткие (рамочные) технические характеристики","Вид","Количество","Единица измерения","Итоговое количество","Рекомендации представителей индустрии (указывается конкретное оборудование)"]
[1,"НЕ ТРЕБУЕТСЯ!"]
[2]
[3]
[4]
[5]

{"sheet":"Рабочее место конкурсантов","index":2,"n_rows":43,"n_cols":8,"rows_kept":43,"merged":[[0,0,0,7],[1,0,1,7],[2,0,2,7],[3,0,3,7],[4,0,4,7],[5,0,5,7],[6,0,6,1],[6,2,6,7],[7,0,7,2],[7,3,7,7],[8,0,8,1],[8,2,8,7],[9,0,9,1],[9,2,9,3],[9,4,9,5],[9,6,9,7],[10,0,10,1],[10,2,10,3],[10,4,10,5],[10,6,10,7],[11,0,11,1],[11,2,11,7],[12,0,12,1],[12,2,12,7],[13,0,13,1],[13,2,13,7],[14,0,14,1],[14,2,14,7],[15,0,15,7],[16,0,16,7],[17,0,17,7],[18,0,18,7],[19,0,19,7],[20,0,20,7],[21,0,21,7],[22,0,22,7],[23,0,23,7],[24,0,24,7],[38,0,38,7]]}
["ПРОЕКТ"]
["Инфраструктурный лист для оснащения конкурсной площадки"]
[{"$f":"'Информация о Чемпионате'!B4","v":"Региональный этап Чемпионата по профессиональному мастерству"}]
["по компетенции"]
[{"$f":"'Информация о Чемпионате'!B3","v":"Предпринимательство, категория - основная"}]
["Основная информация о конкурсной площадке:"]
["Субъект Российской Федерации:",null,{"$f":"'Информация о Чемпионате'!B5","v":"город федерального значения Севастополь"}]
["Базовая организация расположения конкурсной площадки:",null,null,{"$f":"'Информация о Чемпионате'!B6","v":"Государственное бюджетное образовательное учреждение профессионального образования города Севастополя «Севастопольский торгово-экономический техникум»\n"}]
["Адрес базовой организации: ",null,{"$f":"'Информация о Чемпионате'!B7","v":"г. Севастополь, ул. Кожанова, дом 2"}]
["Главный эксперт: ",null,{"$f":"'Информация о Чемпионате'!B9","v":"Потапова Елена Юрьевна"},null,{"$f":"'Информация о Чемпионате'!B10","v":"lenochka-gorbacheva@bk.ru"},null,{"$f":"'Информация о Чемпионате'!B11","v":79788677966}]
["Технический администратор площадки: ",null,{"$f":"'Информация о Чемпионате'!B12","v":"Кучеренко Ярослав Александрович"},null,{"$f":"'Информация о Чемпионате'!B13","v":"yayaric@rambler.ru"},null,{"$f":"'Информация о Чемпионате'!B14","v":79782722841}]
["Количество экспертов (ЭН+ГЭ+ИЭ) + ТАП:",null,{"$f":"'Информация о Чемпионате'!B17","v":15}]
["Количество конкурсантов: ",null,{"$f":"'Информация о Чемпионате'!B15","v":10}]
["Количество рабочих мест: ",null,{"$f":"'Информация о Чемпионате'!B16","v":10}]
["Даты проведения: ",null,{"$f":"'Информация о Чемпионате'!B8","v":" 13 февраля - 20 февраля 2026 года"}]
["Рабочее место Конкурсанта (основное оборудование, вспомогательное оборудование, инструмент (по количеству рабочих мест))"]
["Требования к обеспечению зоны (коммуникации, площадь, сети, количество рабочих мест и др.): "]
["Площадь зоны: 62 кв.м."]
["Освещение: Допустимо верхнее искусственное освещение ( не менее 300 люкс)"]
["Интернет : Подключение компьютеров к проводному интернету"]
["Электричество: 15 подключения к сети  по (220 Вольт и 380 Вольт)\t"]
["Контур заземления для электропитания и сети слаботочных подключений (при необходимости) : не требуется"]
["Покрытие пола: бетон  - 62 кв.м. на всю зону"]
["Подведение/ отведение ГХВС (при необходимости): тне требуется"]
["Подведение сжатого воздуха (при необходимости): не требуется"]
["№","Наименование ","Краткие (рамочные) технические характеристики","Вид","Количество","Единица измерения","Итоговое количество","Рекомендации представителей индустрии (указывается конкретное оборудование)"]
[1,"Стул ","Стул офисный мягкий до 100 кг  (дл/гл/выс), ширина сиденья 42 см, глубина 40 см, высота 84 см   ","Мебель",1,"шт ",10]
[2,"Стол офисный","Стол офисный, прямоугольный,(ШхГхВ) 120х60х75 ","Мебель",1,"шт",10]
[3,"Ноутбук Aquarius, 16 бит","Процессор:  Процессор: Intel Core Core i5 -10210U\nЧастота процессора: 1600 МГц\nОбъем оперативной памяти: 7.5 ГБ\nОбъем жесткого диска: 33.5 ГБ\nДиагональ экрана: 15.6 \"\nВидеокарта: Mesa Intel UHD Graphics (CML GT2)\n","Оборудование IT",1,"шт",10]
[4,"Мышь проводная","Мышь: SVEN RX-112, 3 кнопки, длина кабеля 1,8м, USB Type-A ","Оборудование IT",1,"шт",10]
[5,"МФУ","МФУ HP Color Laser MFP 178nw\nРазрешение печати 600 x 600\nПроизводитель HP\nТехнология печати: лазерная цветная","Оборудование IT",1,"шт",2]
[6,"ОС AstraLinux","ОС AstraLinux 1.7_х86-65","ПО",1,"шт",10]
[7,"Libero Office ","Libero Office 7.0.6.2","ПО",1,"шт",10]
[8,"Доска интерактивная ","Доска интерактивная MimioBoard МЕ 87\nДиагональ: 87 дюймов\nПодключение: USB \nПрограммное обеспечение: MimioStudio для Windows, Mac и Linux\nРазмер: 2120 х 1225 х 70 мм\nТехнология: Ультразвуковая и инфракрасная\nСоотношение сторон: 16:10\nРазрешение доски: 4800 x 9600\nШирина поверхности: 1.867 м\nВысота поверхности: 1.167 м","Оборудование IT",1,"шт",1]
[9,"Проектор","Проектор InFocus IN114, DLP, 1024x768, 3D, 26000:1, 3800 люмен, 31 дБ, 2.5 кг. ","Оборудование IT",1,"шт",1]
[10,"Флипчарт","Доска-флипчарт магнитно-маркерная BRAUBERG Стандарт магнитно-маркерный, 70х1000*1850 Основание: стойка с полкой для аксессуаров и держателем для бумаги  ","Оборудование",1,"шт",10]
[11,"Сетевой фильтр","Пилот, 4 розеток, 10 А","Оборудование IT",1,"шт",10]
[12,"Розетки электрические на 3 гнезда","Для подключения персонального компьютера","Оборудование IT",1,"шт",10]
["Охрана труда и техника безопасности"]
["№","Наименование ","Краткие (рамочные) технические характеристики","Вид","Количество","Единица измерения","Итоговое количество","Рекомендации представителей индустрии (указывается конкретное оборудование)"]
[1,"Аптечка","для оказания доврачебной помощи","Охрана труда",1,"шт",{"$f":"E41","v":1}]
[2,"Огнетушитель","углекислотный/порошковый","Охрана труда",1,"шт",{"$f":"E42","v":1}]
[3,"Бутылированная вода 0,5л","Кулер 19 л /бутылированная холодная вода ","Охрана труда",1,"шт",1]

{"sheet":"Расходные материалы","index":3,"n_rows":49,"n_cols":8,"rows_kept":49,"merged":[[0,0,0,7],[1,0,1,7],[2,0,2,7],[3,0,3,7],[4,0,4,7],[5,0,5,7],[6,0,6,1],[6,2,6,7],[7,0,7,2],[7,3,7,7],[8,0,8,1],[8,2,8,7],[9,0,9,1],[9,2,9,3],[9,4,9,5],[9,6,9,7],[10,0,10,1],[10,2,10,3],[10,4,10,5],[10,6,10,7],[11,0,11,1],[11,2,11,7],[12,0,12,1],[12,2,12,7],[13,0,13,1],[13,2,13,7],[14,0,14,1],[14,2,14,7],[15,0,15,7],[25,0,25,7],[44,0,44,7]]}
["ПРОЕКТ"]
["Инфраструктурный лист для оснащения конкурсной площадки"]
[{"$f":"'Информация о Чемпионате'!B4","v":"Региональный этап Чемпионата по профессиональному мастерству"}]
["по компетенции"]
[{"$f":"'Информация о Чемпионате'!B3","v":"Предпринимательство, категория - основная"}]
["Основная информация о конкурсной площадке:"]
["Субъект Российской Федерации:",null,{"$f":"'Информация о Чемпионате'!B5","v":"город федерального значения Севастополь"}]
["Базовая организация расположения конкурсной площадки:",null,null,{"$f":"'Информация о Чемпионате'!B6","v":"Государственное бюджетное образовательное учреждение профессионального образования города Севастополя «Севастопольский торгово-экономический техникум»\n"}]
["Адрес базовой организации: ",null,{"$f":"'Информация о Чемпионате'!B7","v":"г. Севастополь, ул. Кожанова, дом 2"}]
["Главный эксперт: ",null,{"$f":"'Информация о Чемпионате'!B9","v":"Потапова Елена Юрьевна"},null,{"$f":"'Информация о Чемпионате'!B10","v":"lenochka-gorbacheva@bk.ru"},null,{"$f":"'Информация о Чемпионате'!B11","v":79788677966}]
["Технический администратор площадки: ",null,{"$f":"'Информация о Чемпионате'!B12","v":"Кучеренко Ярослав Александрович"},null,{"$f":"'Информация о Чемпионате'!B13","v":"yayaric@rambler.ru"},null,{"$f":"'Информация о Чемпионате'!B14","v":79782722841}]
["Количество экспертов (ЭН+ГЭ+ИЭ) + ТАП:",null,{"$f":"'Информация о Чемпионате'!B17","v":15}]
["Количество конкурсантов: ",null,5]
["Количество рабочих мест: ",null,5]
["Даты проведения: ",null,{"$f":"'Информация о Чемпионате'!B8","v":" 13 февраля - 20 февраля 2026 года"}]
["Рабочее место Конкурсанта (расходные материалы по количеству конкурсантов)"]
["№","Наименование ","Краткие (рамочные) технические характеристики","Вид","Количество","Единица измерения","Итоговое количество","Рекомендации представителей индустрии (указывается конкретное оборудование)"]
[1,"Бумага А4","Бумага офисная А4, класс «C»,  80 г/м2, 500 л. (1 упаковка)","Канцелярские товары",20,"лист",200]
[2,"Ручка шариковая","Ручка шариковая офисная синяя ","Канцелярские товары",1,"шт ",10]
[3,"Карандаши простые","Карандаш простой чернографитный ","Канцелярские товары",1,"шт ",10]
[4,"Флэш-носитель","Флэш-носитель 8 Gb","Оборудование IT",1,"шт",10]
[5,"Бумага для флипчартов","Бумага для флипчарта (блокнот для флипчарта, 10 листов, белые, 67,5×98 см, 80 г/м2, 128646)","Канцелярские товары",0.5,"упаковка",5]
[6,"Набор маркеров для флипчартов ","Набор маркеров для флипчартов по бумаге ATTACHE набор 4цв., 2-3мм кругл нак","Канцелярские товары",1,"шт ",10]
[7,"Маркер выделитель 2 цвета ","Набор текстовыделителей текста Attache Colored 1-5мм набор 4цв","Канцелярские товары",2,"шт",20]
[8,"Доска-планшет","Доска-планшет А4, синяя с зажимом для бумаг, Staff","Канцелярские товары",1,"шт ",10]
["Расходные материалы на всех конкурсантов и экспертов"]
["№","Наименование ","Краткие (рамочные) технические характеристики","Вид","Количество","Единица измерения","Итоговое количество","Рекомендации представителей индустрии (указывается конкретное оборудование)"]
[1,"Бумага А4","Бумага офисная А4, класс «C»,  80 г/м2, 500 л. (1 упаковка)","Канцелярские товары",1,"пачка",10]
[2,"Скотч обычный","Клейкая лента канцелярская, Brauberg 12мм х 33 м","Канцелярские товары",1,"шт ",1]
[3,"Ручка шариковая","Ручка шариковая офисная синяя ","Канцелярские товары",1,"шт ",25]
[4,"Степлер","Степлер №24/6, 26/6 Staff, до 20 листов","Канцелярские товары",1,"шт ",2]
[5,"Скобы для степлера ","Степлер со скобами, Staff 24/6","Канцелярские товары",1,"шт ",2]
[6,"Скрепки канцелярские","Скрепки канцелярские, 28 mm, цветные Staff 100 штук","Канцелярские товары",1,"упаковка",2]
[7,"Файлы А4","Папка-файл А4, 30 мкм","Канцелярские товары",1,"упаковка",4]
[8,"Бумага для флипчартов","Бумага для флипчарта (блокнот для флипчарта, 10 листов, белые, 67,5×98 см, 80 г/м2, 128646)","Канцелярские товары",1,"упаковка",5]
[9,"Карандаши простые","Карандаш простой чернографитный  ","Канцелярские товары",1,"шт ",13]
[10,"Маркер выделитель 2 цвета ","Набор текстовыделителей текста Attache Colored 1-5мм набор 4цв","Канцелярские товары",1,"упаковка",20]
[11,"Калькулятор","Бухгалтерский, монохомный, 12-ти разрядный","Канцелярские товары",1,"шт ",13]
[12,"Ножницы","Канцелярские для бумаги и картона ","Канцелярские товары",1,"шт ",1]
[13,"Антистеплер","Антистеплер для удаления скоб №24/6 ","Канцелярские товары",1,"шт ",1]
[14,"Клей-карандаш ","Клей-карандаш, 21 гр","Канцелярские товары",1,"шт ",1]
[15,"Набор маркеров для флипчартов ","Набор маркеров для флипчартов, 4 шт","Канцелярские товары",1,"шт ",11]
[16,"Папка-регистратор","Папка для документов Bantex, папка-регистратор А4, из картона, с арочным механизмом, вместимость до 480 листов, корешок 70 мм","Канцелярские товары",1,"шт",4]
[17,"Точилка","Точилка для карандашей школьная с контейнером","Канцелярские товары",1,"шт ",1]
["Охрана труда и техника безопасности"]
["№","Наименование ","Краткие (рамочные) технические характеристики","Вид","Количество","Единица измерения","Итоговое количество","Рекомендации представителей индустрии (указывается конкретное оборудование)"]
[1,"Аптечка","для оказания доврачебной помощи ","Охрана труда",1,"шт",1]
[2,"Огнетушитель","углекислотный/порошковый","Охрана труда",1,"шт",2]
[3,"Бутылированная вода 0,5л","Кулер 19 л /бутылированная холодная вода ","Охрана труда",1,"шт",1]

{"sheet":"Личный инструмент участника","index":4,"n_rows":13,"n_cols":7,"rows_kept":13,"merged":[[0,0,0,6],[1,0,1,6],[2,0,2,6],[3,0,3,6],[4,0,4,6],[5,0,5,6]]}
["ПРОЕКТ"]
["Инфраструктурный лист для оснащения конкурсной площадки"]
[{"$f":"'Информация о Чемпионате'!B4","v":"Региональный этап Чемпионата по профессиональному мастерству"}]
["по компетенции"]
[{"$f":"'Информация о Чемпионате'!B3","v":"Предпринимательство, категория - основная"}]
["Личный инструмент конкурсанта"]
["№","Наименование ","Краткие (рамочные) технические характеристики","Вид","Количество","Единица измерения","Примечание "]
[1,"НЕ ТРЕБУЕТСЯ!"]
[2]
[3]
[4]
[5]
[6]